Cogmind - Beta 16 *** ADVENTURER MODE // 2025.12.21 @ 07:54:14 Player: Pilot Result: Destroyed by Y-45 Defender with Heavy Assault Rifle Performance ------------- Evolutions (1) 500 Regions Visited (2) 400 Robots Destroyed (31) 155 Value Destroyed (594) 594 Prototype IDs (0) 0 Alien Tech Used (0) 0 Bonus (0) 0 TOTAL SCORE: 1649 Bonus ------- None Cogmind --------- Core Integrity 0/400 Matter 164/300 Energy 100/100 System Corruption 6% Temperature Cool (9) Movement Core (700) Ox13 Location -9/Materials Parts ------- > --- POWER (1) -------- (None) > --- PROPULSION (3) --- (None) > --- UTILITY (3) ------ Large Storage Unit Large Storage Unit > --- WEAPON (2) ------- (None) > --- INVENTORY (15) --- Ion Engine Heat Sink Large Storage Unit Visual Processing Unit Terrain Scanner Terrain Scanner Terrain Scan Processor Terrain Scan Processor ECM Suite Grenade Launcher Mini Grenade Launcher Mini Grenade Launcher Mini Grenade Launcher Peak State ------------ > --- POWER ------------ Ion Engine > --- PROPULSION ------- Light Treads Light Treads > --- UTILITY ---------- Large Storage Unit Large Storage Unit > --- WEAPON ----------- Grenade Launcher Mini Grenade Launcher > --- INVENTORY -------- Ion Engine Light Ion Engine Wheel Heat Sink Large Storage Unit Visual Processing Unit Terrain Scanner Terrain Scan Processor Terrain Scan Processor ECM Suite EM Pulse Gun Mini Grenade Launcher Mini Grenade Launcher Mini Grenade Launcher [Rating: 10] Favorites ----------- Power Ion Engine Engine Ion Engine Propulsion Light Treads Treads Light Treads Utility Large Storage Unit Device Terrain Scanner Storage Large Storage Unit Weapon Grenade Launcher Energy Gun Medium Laser Energy Cannon Beam Cannon Launcher Grenade Launcher Build | -11 -10 -9 ------- Run | Yrd Mat Mat Slots Evolved 2 | . . 2 Power . | . . . Propulsion 1 | . . 1 Utility 1 | . . 1 Weapon . | . . . Parts Attached 13 | 7 5 1 Power 2 | 2 . . Engine 2 | 2 . . Core . | . . . Reactor . | . . . Propulsion 2 | 2 . . Treads 2 | 2 . . Leg . | . . . Wheel . | . . . Hover . | . . . Flight . | . . . Utility 4 | 1 2 1 Device 1 | . . 1 Storage 3 | 1 2 . Processor . | . . . Hackware . | . . . Protection . | . . . Artifact . | . . . Weapon 5 | 2 3 . Energy Gun 2 | 2 . . Energy Cannon 1 | . 1 . Ballistic Gun . | . . . Ballistic Cannon . | . . . Launcher 2 | . 2 . Special Weapon . | . . . Impact Weapon . | . . . Slashing Weapon . | . . . Piercing Weapon . | . . . Special Melee Weapon . | . . . Unidentified Prototypes . | . . . Parts Lost 6 | . . 6 Power 1 | . . 1 Propulsion 2 | . . 2 Utility 1 | . . 1 Weapon 2 | . . 2 Highest Loss Streak 6 | . . 6 To Critical Strikes . | . . . Average Backups 10 | 1 11 13 Power 1 | . 1 1 Propulsion . | . . . Utility 5 | . 5 8 Weapon 3 | . 3 4 Tool/Special . | . . . Unused Backups 14 | . 1 13 Power 1 | . . 1 Propulsion 1 | . 1 . Utility 8 | . . 8 Weapon 4 | . . 4 Tool/Special . | . . . Average Slot Usage (%) 96 | . 99 71 Engine 13 | . 14 8 Treads 27 | . 28 18 Storage 27 | . 27 22 Energy Gun 1 | . 1 . Energy Cannon 2 | . 3 . Launcher 22 | . 22 16 Peak Build Rating 10 | 6 10 10 Average Rating 8 | 4 8 8 On Entrance 5 | . 6 10 Avg Prop Armor Cover (%) . | . . . Naked Turns . | . . . Heaviest Build 51 | 14 51 50 Greatest Support 40 | 40 40 40 Greatest Overweight (x) 13 | . 1 13 Average Overweight (x) . | . . 1 Largest Inventory Capacity 15 | 8 15 15 Average Capacity 14 | 7 14 15 Most Carried 15 | 3 15 14 Average Carried 10 | 1 11 13 Final Capacity 15 | 8 15 15 Final Carried 14 | 2 14 13 Class Distribution -------------------- 100% | Mutant Dominant Class ---------------- Mutant | -10/Materials Mutant | -9/Materials Resources | -11 -10 -9 ----------- Run | Yrd Mat Mat Matter Collected 544 | 179 365 . Remotely . | . . . Salvage Created 462 | . 323 139 Parts 32 | . 18 14 Haulers Intercepted . | . . . Recyclers Shooed 2 | . 2 . Parts Field Recycled . | . . . Retrieved Matter . | . . . Parts Self-Destructed . | . . . Prevented . | . . . Parts Restored . | . . . Kills | -11 -10 -9 ------- Run | Yrd Mat Mat Combat Hostiles Destroyed 18 | . 12 6 Melee 1 | . 1 . Cannons 1 | . 1 . AOE 16 | . 10 6 Classes Destroyed 6 | . 6 . Worker 3 | . 2 1 Builder 4 | . 1 3 Recycler 1 | . 1 . Watcher 5 | . 3 2 Swarmer 9 | . 5 4 Grunt 9 | . 7 2 Best Kill Streak 10 | . 7 10 Combat Bots Only 5 | . 3 5 Max Kills in Single Turn 3 | . 2 3 Gunslinging . | . . . Exploded 2 | . 2 2 Melee 1 | . 1 . Uniques/NPCs Destroyed . | . . . Combat | -11 -10 -9 -------- Run | Yrd Mat Mat Hostile Shots Fired 170 | . 82 88 Missed 59 | . 29 30 Hits 111 | . 53 58 Projectile 111 | . 53 58 Critical Strikes 5 | . 1 4 Damage Taken 1393 | . 381 1012 Core 453 | . 45 408 Absorbed by Shields . | . . . Ignored by Resistances 318 | . 123 195 Regen/Repaired (Parts) 122 | . 122 . Core Remaining (%) 91 | 100 82 . Volleys Fired 40 | . 30 10 Largest 2 | . 2 2 Hottest 90 | . 90 60 Shots Fired 65 | . 51 14 Gun 5 | . 5 . Cannon 23 | . 23 . Launcher 37 | . 23 14 Special . | . . . Kinetic . | . . . Thermal 28 | . 28 . Explosive 37 | . 23 14 Electromagnetic . | . . . Robot Hit Streak 12 | . 12 3 Robot Miss Streak 1 | . 1 1 Penetration Max . | . . . Secondary Targets . | . . . Shots Hit Robots 45 | . 39 6 Core Hits 53 | . 31 22 Critical Kills . | . . . Critical Parts Destroyed . | . . . Critical Strikes . | . . . Melee Attacks . | . . . Impact . | . . . Slashing . | . . . Piercing . | . . . Sneak Attacks . | . . . Combat Hostiles . | . . . Follow-up Attacks . | . . . Damage Inflicted 2424 | . 1590 834 Guns 37 | . 37 . Cannons 336 | . 336 . Explosions 2036 | . 1205 831 Melee . | . . . Ramming 15 | . 12 3 Kinetic . | . . . Thermal 373 | . 373 . Explosive 2036 | . 1205 831 Electromagnetic . | . . . Impact . | . . . Slashing . | . . . Piercing . | . . . Highest Corruption 6 | . . 6 Average Corruption 6 | . . 6 Corruption Purged . | . . . Corruption Blocked . | . . . Effects 1 | . . 1 Data Loss (major) 1 | . . 1 Overload Shots . | . . . Overflow Damage 108 | . 85 23 Projectiles 23 | . 23 . Explosions 85 | . 62 23 Melee . | . . . Knockbacks . | . . . Impact . | . . . Kinetic . | . . . Secondary . | . . . Self-Inflicted Damage 53 | . 16 37 Shots 4 | . 2 2 Rammed 6 | . 5 1 Targets Rammed 7 | . 6 1 Kicked . | . . . Crushed 1 | . 1 . Highest Temperature 152 | . 152 6 Average Temperature 53 | . 56 4 Received Heat Transfer 429 | . 108 321 Siege Activations . | . . . Martial Activations . | . . . Shielding Activations . | . . . Robots Disrupted . | . . . Combat Hostiles . | . . . Robots Corrupted . | . . . Combat Hostiles . | . . . Parts Fried . | . . . Impact Corruptions . | . . . Robots Melted . | . . . Combat Hostiles . | . . . Parts Melted . | . . . Heat Transferred 814 | . 814 . Parts Sabotaged . | . . . Parts Stolen . | . . . Parts Stripped . | . . . Power Chain Reactions . | . . . Alert | -11 -10 -9 ------- Run | Yrd Mat Mat Maximum Alert Level 1 | . 1 1 Low Security (%) 95 | 100 95 89 Level 1 4 | . 4 10 Level 2 . | . . . Level 3 . | . . . Level 4 . | . . . Level 5 . | . . . High Security . | . . . Max Security . | . . . Peak Influence 234 | . 234 224 Initial . | . . . Average 53 | . 55 77 Influence Increases 778 | . 488 290 Destroy 0b10 Robot/C 360 | . 240 120 Destroy 0b10 Robot/NC 65 | . 35 30 Destroy Leader 70 | . 46 24 Successful Hack 2 | . 2 . Disable Machine 45 | . 18 27 Destroy Structure 206 | . 132 74 Partial Spotted 15 | . 15 . Lose Combat Pursuer 15 | . . 15 Influence Decreases 614 | . 488 126 Time Decay 554 | . 488 66 Lost Part 60 | . . 60 Squads Dispatched 3 | . 1 2 Investigation 1 | . 1 . Extermination . | . . . Reinforcement 2 | . . 2 Assault . | . . . Garrison . | . . . Intercept . | . . . Searches Triggered . | . . . Construction Impeded 1 | . . 1 Haulers Reinforced . | . . . Active Scanning Responses . | . . . Cargo Convoy Interrupts . | . . . Stealth | -11 -10 -9 --------- Run | Yrd Mat Mat Distress Signals 2 | . 1 1 Communications Jammed . | . . . Distress Signals . | . . . Times Spotted 32 | . 19 13 Peak Tracking Total 6 | . 5 6 Tactical Retreats 1 | . . 1 Traps | -11 -10 -9 ------- Run | Yrd Mat Mat Traps Triggered . | . . . Indirectly . | . . . Trap Hack Attempts . | . . . Triggered . | . . . Disarmed . | . . . Reprogrammed . | . . . Reused . | . . . Traps Extracted . | . . . Installed . | . . . Triggered . | . . . Machines | -11 -10 -9 ---------- Run | Yrd Mat Mat Machines Disabled 5 | . 2 3 Max in Single Turn 1 | . 1 1 Machines Repaired . | . . . Machines Dismantled . | . . . Machines Sabotaged . | . . . Overloaded Fab Kills . | . . . Hacking | -11 -10 -9 --------- Run | Yrd Mat Mat Machines Accessed 3 | . 3 . Terminals 1 | . 1 . Fabricators . | . . . Repair Stations 1 | . 1 . Recycling Units 1 | . 1 . Scanalyzers . | . . . Garrison Access . | . . . Total Hacks 11 | . 11 . Successful 8 | . 8 . Failed 3 | . 3 . Catastrophic . | . . . Database Lockouts . | . . . Manual 2 | . 2 . Terminals 3 | . 3 . Fabricators . | . . . Repair Stations 5 | . 5 . Recycling Units 3 | . 3 . Scanalyzers . | . . . Garrison Access . | . . . Terminal Hacks 1 | . 1 . Emergency Access Points 1 | . 1 . Fabricator Hacks . | . . . Repair Station Hacks 5 | . 5 . Scan Component 3 | . 3 . Repair 2 | . 2 . Recycling Unit Hacks 2 | . 2 . Report Inventory 1 | . 1 . Retrieve Components 1 | . 1 . Scanalyzer . | . . . Garrison Access Hacks . | . . . Unauthorized Hacks . | . . . Terminals . | . . . Fabricators . | . . . Repair Stations . | . . . Recycling Units . | . . . Scanalyzers . | . . . Garrison Access . | . . . Data Cores Recovered . | . . . Used . | . . . Hacking Detections 3 | . 3 . Full Trace Events 1 | . 1 . Feedback Events . | . . . Feedback Blocked . | . . . Robot Schematics Acquired . | . . . Robots Built . | . . . Authchips . | . . . Time . | . . . Total Robot Build Rating . | . . . Part Schematics Acquired . | . . . Parts Built . | . . . Authchips . | . . . Time . | . . . Total Part Build Rating . | . . . Part Studies Acquired . | . . . Parts Repaired 2 | . 2 . Time 52 | . 52 . Parts Recycled . | . . . Recycled Matter . | . . . Retrieved Matter . | . . . Retrieved Components 9 | . 9 . Parts Scanalyzed . | . . . Part Schematics Acquired . | . . . Parts Damaged . | . . . Bothacking | -11 -10 -9 ------------ Run | Yrd Mat Mat Used RIF Installer . | . . . Robots Hacked . | . . . Non-combat . | . . . Combat . | . . . Robot Hacks Applied . | . . . Relay Couplers Released . | . . . Fabnet Peak Effective % . | . . . Robots Rewired . | . . . Allies Hacked . | . . . Hacks Repelled . | . . . Allies | -11 -10 -9 -------- Run | Yrd Mat Mat Total Allies . | . . . Largest Group . | . . . Highest-Rated Group . | . . . Highest-Rated Ally . | . . . Total Orders . | . . . Ally Attacks . | . . . Total Damage . | . . . Kills . | . . . Allies Corrupted . | . . . Allies Melted . | . . . Intel | -11 -10 -9 ------- Run | Yrd Mat Mat Active Infowar (turns) 97 | . . 97 Terrain 97 | . . 97 Robot Analysis Total . | . . . Derelict Logs Recovered . | . . . Drone Launches . | . . . Drone Recoveries . | . . . Exploration | -11 -10 -9 ------------- Run | Yrd Mat Mat Turns Passed 2157 | 151 1821 185 Spaces Moved 846 | 85 702 59 Core 9 | 4 . 5 Treads 837 | 81 702 54 Legs . | . . . Wheels . | . . . Hover . | . . . Flight . | . . . Fastest Speed 50 | 50 160 160 Average Speed 233 | 154 239 274 Slowest Speed 700 | 160 240 700 Overloaded Moves . | . . . Propulsion Burnouts . | . . . Robots Hopped . | . . . Potential Cave-ins 2 | . 2 . Cave-ins Triggered 1 | . . 1 Exploration Rate (%) 30 | 7 76 9 Regions Visited 2 Branch Regions . Pre-discovered Areas . | . . . Known Exits Taken . | . . . Unknown Exits Taken 2 | 1 1 . Scrap Searched . | . . . Spaces Dug . | . . . Terrain Destroyed 243 | . 145 98 Melee . | . . . Projectile . | . . . AOE 243 | . 145 98 Terrain Rammed . | . . . Walls Destroyed . | . . . Machines Disabled . | . . . Actions | -11 -10 -9 --------- Run | Yrd Mat Mat Total 960 | 102 787 71 Wait 29 | 7 22 . Move 844 | 84 701 59 Hop . | . . . Pick Up 16 | 2 14 . Fast Attach 12 | 6 6 . Attach 3 | 1 1 1 Detach 3 | 1 2 . Swap 1 | 1 . . Drop 5 | . 5 . Fire 40 | . 30 10 Melee . | . . . Ram . | . . . Kick . | . . . Crush 7 | . 6 1 Escape Stasis . | . . . Rewire . | . . . Trap . | . . . Miscellaneous . | . . . Route ------- -11/Scrapyard -10/Materials (discovered 4 exits: [*Mat x2] / [*Min] / [*Sub]) -9/Materials History --------- Turn | Location | Event 20 | -11/Scrapyard | Discovered new exit (range 14) 152 | -11/Scrapyard | Entered Materials 153 | -10/Materials | Met a group of wandering Federalists 303 | -10/Materials | Build established: Mutant 368 | -10/Materials | Discovered new exit (range 15) 573 | -10/Materials | Discovered new exit (range 16) 647 | -10/Materials | Repaired Grenade Launcher 679 | -10/Materials | Repaired Beam Cannon 1077 | -10/Materials | Discovered new exit (range 10) 1390 | -10/Materials | Discovered new exit (range 7) 1973 | -10/Materials | Entered another Materials area 1973 | -9/Materials | Evolved 2 slots: Propulsion x1, Utility x1 2121 | -9/Materials | Crushed by falling debris 2121 | -9/Materials | Core integrity fell below 50% 2146 | -9/Materials | Core integrity fell below 20% 2158 | -9/Materials | Destroyed by Y-45 Defender with Heavy Assault Rifle Last Messages --------------- W-16 Scout destroyed. Ion Engine destroyed. Destroyed Ion Engine. Atomic Centrifuge disabled. Terminal disabled. The unstable cave ceiling collapses. Crushed by falling debris. Mni. Grenade Launcher destroyed. System corrupted by crushing effect (+4). Terrain Scanner destroyed. System corrupted by crushing effect (+2). Lgt. Treads destroyed. Electrolysis Chamber disabled. Lgt. Treads destroyed. System corrupted: Substantial component data lost. Critical hit (Burn: +37). The unstable cave ceiling collapses. M-13 Machinist repairs Y-45 Defender. The unstable cave ceiling collapses. Map ----- +----------------------------------------------------+ | | | | | | | | | | | | | | | | | | | | | | | | | | | | | | | ????????????????????????????????????????????? | | ?????????????????###############????????????? | | ?????????????????# # !#???#????????? | | ?????????????????# # #??????#?????# | | ?????????????????# !! # /* ##????????#??? | | ?????????????????# !! # / #?????#??????? | | ?????????????????# # #????????????? | | ?????????????????+ ] =# """ #?????#??????? | | ?????????????????# # """ #?????????##?? | | ???????????????# ## ## "" #???#??????##? | | ???????????????# @ + #????????## # | | ???????????????# # ## ########## # | | ?????????????????# !### | | ???????????????# Y Y = | | ???????????????# # % % | | ???????????????#?# ###### | | ??????????????? # # #??#??#### | | ??????????????? + ## # "" #??????# # | | ????????????? # ?#### "T #??????#### | | ?????????????###### ????# """ #????? ???? | | ??????????????????#?????# " ??? ?????? | | ????????????????????????# / ##??? ????? | | ????????????????????????# #?????????? | | ????????????????????????? #????????"? | | ???????????????????????#?# # ???????????? | | ?????????????????????????? ??## ##???? ?????? | | ??????????????????????????????# ?#??#???????? | | ????????????????????????? ??????????????????? | | ????????????????????????????????????????????? | | ????????????????????????????????????????????? | | ????????????????????????????????????????????? | | ????????????????????????????????????????????? | | ????????????????????????????????????????????? | | ????????????????????????????????????????????? | | ????????????????????????????????????????????? | +----------------------------------------------------+ Best States ------------- Heat Dissipation 28 Energy Generation 10 Energy Capacity 250 Matter Stores 300 Matter Capacity 300 Sight Range 16 Terrain Scan Range 14 Terrain Scan Density 10 Resistance: KI 20 Resistance: TH 20 Resistance: EX 20 Resistance: EM 20 Resistance: I 20 Resistance: S 20 Resistance: P 20 Evasion (%) 50 Recoil Reduction 2 Offensive Hacking 10 Item Schematics ----------------- None Robot Schematics ------------------ None Fabricated ------------ Nothing Repaired ---------- Grenade Launcher | 5% | -10/Materials Beam Cannon | 35% | -10/Materials Studied --------- None Alien Tech Used ----------------- None Achievements -------------- DATA ERROR: Steam Global Achievement% For Emergencies Only I Have A Map? Organ Harvest Overwhelming Part-time Mechanic Remodeling Challenges ------------ None Game ------ Seed DynamicMeleeSegregator Manual? 0 Play Time 01:27:17 Cumulative 8.9 hours Start 2025.12.20 @ 18:57:53 End 2025.12.21 @ 07:54:14 Sessions 5 Manual Loads 0 Difficulty Adventurer Special Mode None Game No. 7 Rogue 0 Adventurer 7 Explorer 0 Win Type - Total 0 Types 0/0/0/0/0/0/0/0/0/0 Lore% 5 Gallery% 10 Achievement% 8 Wizard Run 0 Options --------- Layout 1 ASCII 0 Keyboard 1 Movement Vi Keybinds 0 Fullscreen 2 Font 24/Smallcaps Map View 50x35 Zoom Use 0% Tactical HUD 0 Map Filters NONE Filters NONE Steam 1 RUN: 5dccf1fd-af59-410b-8e9f-aedd853ad72d